[Event "Kragero Resort A 2020"]
[Site "Kragero"]
[Date "2020.02.19"]
[Round "1.3"]
[White "Brodtkorb, Lars Johan"]
[Black "Moiseenko, Vadim"]
[Result "0-1"]
[ECO "D31"]
[WhiteElo "2179"]
[BlackElo "2550"]
[Annotator "ChessBase"]
[PlyCount "80"]
[EventDate "2020.02.19"]
[EventType "swiss"]
[EventCountry "NOR"]
[SourceTitle "playchess.com"]
[Source "ChessBase"]
[SourceQuality "1"]
[TimeControl "5400+30"]

1. d4 {[%emt 0:00:00]} d5 {[%emt 0:00:03]} 2. c4 {[%emt 0:00:14]} e6 {[%emt 0:00:09]} 3. Nc3 {[%emt 0:00:16]} a6 {[%emt 0:00:14]} 4. cxd5 {[%emt 0:01:17]} exd5 {[%emt 0:00:04]} 5. Bf4 {[%emt 0:00:17]} Nf6 {[%emt 0:02:08]} 6. e3 {[%emt 0:00:30]} Be7 {[%emt 0:00:32]} 7. Bd3 {[%emt 0:00:56]} O-O {[%emt 0:00:07]} 8. h3 {[%emt 0:01:52]} Bd6 {[%emt 0:10:53]} 9. Be5 {[%emt 0:11:02]} Be6 {[%emt 0:09:06]} 10. Nf3 {[%emt 0:00:31]} Nc6 {[%emt 0:00:00]} 11. O-O {[%emt 0:05:50]} Re8 {[%emt 0:00:00]} 12. Rc1 {[%emt 0:03:46]} Qe7 {[%emt 0:02:02]} 13. a3 {[%emt 0:22:14]} h6 {[%emt 0:03:43]} 14. Qc2 {[%emt 0:04:32]} Kh8 {[%emt 0:02:43]} 15. Ne2 {[%emt 0:02:58]} Nd7 {[%emt 0:02:41]} 16. Bxd6 {[%emt 0:08:57]} Qxd6 {[%emt 0:00:40]} 17. Nf4 {[%emt 0:00:08]} Re7 {[%emt 0:06:49]} 18. Rfd1 {[%emt 0:05:44]} g5 {[%emt 0:03:20]} 19. Nxe6 {[%emt 0:05:14]} fxe6 {[%emt 0:00:43]} 20. e4 {[%emt 0:00:33]} Rf7 {[%emt 0:01:39]} 21. e5 {[%emt 0:04:53]} Qf8 {[%emt 0:01:40]} 22. Be2 {[%emt 0:00:50]} Qg7 {[%emt 0:04:09]} 23. Qb3 {[%emt 0:02:10]} Nb6 {[%emt 0:00:59]} 24. Qe3 {[%emt 0:01:03]} Rf4 {[%emt 0:00:57]} 25. Rd2 {[%emt 0:03:29]} Raf8 {[%emt 0:04:32]} 26. Qc3 {[%emt 0:02:42]} Ne7 {[%emt 0:09:16]} 27. Rcc2 {[%emt 0:02:10]} Nc4 {[%emt 0:04:25]} 28. Bxc4 {[%emt 0:01:05]} dxc4 {[%emt 0:00:05]} 29. Qxc4 {[%emt 0:00:12]} g4 {[%emt 0:00:20]} 30. hxg4 {[%emt 0:02:11]} Rxg4 {[%emt 0:02:43]} 31. Ne1 {[%emt 0:00:02]} Nd5 {[%emt 0:00:09]} 32. g3 {[%emt 0:03:01]} h5 {[%emt 0:00:16]} 33. Ng2 {[%emt 0:00:38]} h4 {[%emt 0:00:17]} 34. Rd3 {[%emt 0:02:14]} hxg3 {[%emt 0:02:01]} 35. Rxg3 {[%emt 0:00:13]} Rxg3 {[%emt 0:00:05]} 36. fxg3 {[%emt 0:00:06]} Qxg3 {[%emt 0:00:05]} 37. Qe2 {[%emt 0:00:51]} Kg7 {[%emt 0:01:46]} 38. Qe1 {[%emt 0:01:03]} Qg4 {[%emt 0:00:13]} 39. Qh4 {[%emt 0:00:59]} Qg6 {[%emt 0:01:34]} 40. Rd2 {[%emt 0:02:29]} Ne3 {[%emt 0:05:37]} 0-1

[Event "Kragero Resort A 2020"]
[Site "Kragero"]
[Date "2020.02.19"]
[Round "1.4"]
[White "Lie, Kjetil A."]
[Black "Royset, Pal"]
[Result "1-0"]
[ECO "A48"]
[WhiteElo "2523"]
[BlackElo "2177"]
[Annotator "ChessBase"]
[PlyCount "113"]
[EventDate "2020.02.19"]
[EventType "swiss"]
[EventCountry "NOR"]
[SourceTitle "playchess.com"]
[Source "ChessBase"]
[SourceQuality "1"]
[TimeControl "5400+30"]

1. d4 {[%emt 0:00:00]} Nf6 {[%emt 0:00:10]} 2. Nf3 {[%emt 0:00:00]} d5 {[%emt 0:00:57]} 3. e3 {[%emt 0:00:07]} g6 {[%emt 0:02:01]} 4. Be2 {[%emt 0:05:16]} Bg7 {[%emt 0:01:11]} 5. O-O {[%emt 0:00:23]} O-O {[%emt 0:00:45]} 6. b4 {[%emt 0:01:11]} b6 {[%emt 0:06:56]} 7. Bb2 {[%emt 0:10:30]} Bb7 {[%emt 0:06:33]} 8. Nbd2 {[%emt 0:02:32]} Nbd7 {[%emt 0:03:37]} 9. c4 {[%emt 0:15:36]} c5 {[%emt 0:10:34]} 10. dxc5 {[%emt 0:01:01]} bxc5 {[%emt 0:00:39]} 11. b5 {[%emt 0:00:17]} e6 {[%emt 0:03:46]} 12. a4 {[%emt 0:03:40]} Qc7 {[%emt 0:03:23]} 13. Qc2 {[%emt 0:04:31]} Rac8 {[%emt 0:02:32]} 14. Rfd1 {[%emt 0:01:39]} Rfd8 {[%emt 0:03:21]} 15. Rac1 {[%emt 0:00:18]} Qb8 {[%emt 0:03:24]} 16. Qb1 {[%emt 0:03:57]} Nh5 {[%emt 0:06:40]} 17. Ne1 {[%emt 0:09:13]} Bxb2 {[%emt 0:02:10]} 18. Qxb2 {[%emt 0:00:03]} Nhf6 {[%emt 0:05:06]} 19. Nd3 {[%emt 0:03:06]} Ba8 {[%emt 0:08:23]} 20. cxd5 {[%emt 0:04:40]} Nxd5 {[%emt 0:03:48]} 21. Nc4 {[%emt 0:02:52]} N5b6 {[%emt 0:02:14]} 22. Nde5 {[%emt 0:07:47]} Nxe5 {[%emt 0:03:26]} 23. Nxe5 {[%emt 0:00:09]} Nxa4 {[%emt 0:03:11]} 24. Qa1 {[%emt 0:00:39]} Nb6 {[%emt 0:01:00]} 25. Ng4 {[%emt 0:03:01]} e5 {[%emt 0:05:54]} 26. Rxd8+ {[%emt 0:01:46]} Rxd8 {[%emt 0:00:05]} 27. Nxe5 {[%emt 0:00:09]} h5 {[%emt 0:02:59]} 28. Rxc5 {[%emt 0:08:11]} Rd2 {[%emt 0:02:03]} 29. Bf3 {[%emt 0:01:13]} Qd6 {[%emt 0:01:41]} 30. Rc1 {[%emt 0:00:11]} Bxf3 {[%emt 0:02:07]} 31. Nxf3 {[%emt 0:00:14]} Rd3 {[%emt 0:00:47]} 32. h3 {[%emt 0:02:23]} Ra3 {[%emt 0:00:47]} 33. Qe5 {[%emt 0:02:11]} Qxe5 {[%emt 0:01:05]} 34. Nxe5 {[%emt 0:00:05]} Nd5 {[%emt 0:00:14]} 35. Rc5 {[%emt 0:00:45]} Ra1+ {[%emt 0:00:57]} 36. Kh2 {[%emt 0:00:05]} Rd1 {[%emt 0:00:04]} 37. Nc6 {[%emt 0:01:39]} Nf6 {[%emt 0:00:39]} 38. Nxa7 {[%emt 0:00:29]} Ne4 {[%emt 0:00:17]} 39. Rc2 {[%emt 0:01:04]} Rb1 {[%emt 0:00:21]} 40. h4 {[%emt 0:02:39]} Kg7 {[%emt 0:01:08]} 41. f3 {[%emt 0:00:40]} Nd6 {[%emt 0:00:06]} 42. Rc5 {[%emt 0:00:56]} Nf5 {[%emt 0:01:33]} 43. e4 {[%emt 0:00:12]} Nd4 {[%emt 0:00:28]} 44. Rd5 {[%emt 0:00:40]} Ne6 {[%emt 0:00:25]} 45. Rd7 {[%emt 0:00:37]} Nc5 {[%emt 0:00:31]} 46. Rd6 {[%emt 0:00:42]} Ne6 {[%emt 0:00:52]} 47. b6 {[%emt 0:00:35]} Rb2 {[%emt 0:00:41]} 48. Kg3 {[%emt 0:00:20]} Rb3 {[%emt 0:00:16]} 49. Nc8 {[%emt 0:00:30]} Nc5 {[%emt 0:00:23]} 50. Rd4 {[%emt 0:01:01]} Ne6 {[%emt 0:00:23]} 51. Rc4 {[%emt 0:00:22]} Rb2 {[%emt 0:00:27]} 52. Ra4 {[%emt 0:01:29]} Rb3 {[%emt 0:01:47]} 53. Ra7 {[%emt 0:00:14]} Kg8 {[%emt 0:00:20]} 54. b7 {[%emt 0:00:22]} Nd8 {[%emt 0:01:01]} 55. Nd6 {[%emt 0:00:13]} Nc6 {[%emt 0:00:20]} 56. Ra8+ {[%emt 0:00:18]} Kg7 {[%emt 0:00:04]} 57. Rc8 {[%emt 0:00:16]} 1-0

[Event "Kragero Resort A 2020"]
[Site "Kragero"]
[Date "2020.02.19"]
[Round "1.5"]
[White "Unneland, Mathias"]
[Black "Chatalbashev, Boris"]
[Result "0-1"]
[ECO "E91"]
[WhiteElo "2175"]
[BlackElo "2514"]
[Annotator "ChessBase"]
[PlyCount "96"]
[EventDate "2020.02.19"]
[EventType "swiss"]
[EventCountry "NOR"]
[SourceTitle "playchess.com"]
[Source "ChessBase"]
[SourceQuality "1"]
[TimeControl "5400+30"]

1. d4 {[%emt 0:00:00]} Nf6 {[%emt 0:00:00]} 2. c4 {[%emt 0:00:00]} c5 {[%emt 0:00:08]} 3. d5 {[%emt 0:00:00]} g6 {[%emt 0:00:05]} 4. Nc3 {[%emt 0:00:00]} Bg7 {[%emt 0:00:04]} 5. e4 {[%emt 0:00:06]} d6 {[%emt 0:00:03]} 6. Nf3 {[%emt 0:00:23]} O-O {[%emt 0:00:08]} 7. Be2 {[%emt 0:00:43]} e6 {[%emt 0:00:09]} 8. O-O {[%emt 0:00:10]} Re8 {[%emt 0:00:27]} 9. h3 {[%emt 0:00:30]} exd5 {[%emt 0:00:40]} 10. exd5 {[%emt 0:00:09]} Bf5 {[%emt 0:00:21]} 11. Bd3 {[%emt 0:00:12]} Ne4 {[%emt 0:03:17]} 12. Nxe4 {[%emt 0:00:09]} Bxe4 {[%emt 0:00:05]} 13. Bxe4 {[%emt 0:00:09]} Rxe4 {[%emt 0:00:05]} 14. Qc2 {[%emt 0:00:10]} Re8 {[%emt 0:00:42]} 15. Bf4 {[%emt 0:04:19]} Na6 {[%emt 0:05:04]} 16. a3 {[%emt 0:04:56]} Qf6 {[%emt 0:09:00]} 17. Bg5 {[%emt 0:03:53]} Qxb2 {[%emt 0:01:32]} 18. Qxb2 {[%emt 0:00:10]} Bxb2 {[%emt 0:00:05]} 19. Rab1 {[%emt 0:00:07]} Re2 {[%emt 0:09:23]} 20. Rfe1 {[%emt 0:05:20]} Rxe1+ {[%emt 0:03:23]} 21. Nxe1 {[%emt 0:00:13]} Bxa3 {[%emt 0:15:14]} 22. Rxb7 {[%emt 0:00:10]} Bb4 {[%emt 0:04:34]} 23. Nf3 {[%emt 0:07:56]} Ba5 {[%emt 0:07:43]} 24. Nd2 {[%emt 0:07:44]} Nc7 {[%emt 0:04:47]} 25. Ne4 {[%emt 0:05:02]} Ne8 {[%emt 0:00:05]} 26. Be7 {[%emt 0:06:09]} Bb4 {[%emt 0:05:12]} 27. Nxd6 {[%emt 0:03:44]} Nxd6 {[%emt 0:00:12]} 28. Bxd6 {[%emt 0:00:08]} a5 {[%emt 0:00:02]} 29. Be5 {[%emt 0:00:49]} a4 {[%emt 0:03:10]} 30. g4 {[%emt 0:03:28]} a3 {[%emt 0:00:08]} 31. Kg2 {[%emt 0:01:31]} Kf8 {[%emt 0:04:28]} 32. f4 {[%emt 0:09:08]} a2 {[%emt 0:01:45]} 33. Ba1 {[%emt 0:00:43]} Ke8 {[%emt 0:01:30]} 34. f5 {[%emt 0:11:43]} gxf5 {[%emt 0:00:34]} 35. gxf5 {[%emt 0:06:42]} Ra3 {[%emt 0:02:16]} 36. Be5 {[%emt 0:05:15]} Ra8 {[%emt 0:03:03]} 37. Ba1 {[%emt 0:00:20]} Bd2 {[%emt 0:04:37]} 38. Rb2 {[%emt 0:04:40]} Bf4 {[%emt 0:01:39]} 39. Re2+ {[%emt 0:00:41]} Kd7 {[%emt 0:00:08]} 40. Kf3 {[%emt 0:00:19]} Bd6 {[%emt 0:00:31]} 41. Kg4 {[%emt 0:01:20]} f6 {[%emt 0:01:42]} 42. Re1 {[%emt 0:01:08]} Be5 {[%emt 0:03:36]} 43. Kh5 {[%emt 0:08:35]} Ke7 {[%emt 0:00:48]} 44. Kh6 {[%emt 0:01:23]} Kf7 {[%emt 0:00:06]} 45. Bxe5 {[%emt 0:00:17]} fxe5 {[%emt 0:00:06]} 46. Ra1 {[%emt 0:00:06]} e4 {[%emt 0:00:41]} 47. d6 {[%emt 0:00:31]} e3 {[%emt 0:00:06]} 48. d7 {[%emt 0:00:22]} e2 {[%emt 0:00:45]} 0-1

[Event "Kragero Resort A 2020"]
[Site "Kragero"]
[Date "2020.02.19"]
[Round "1.6"]
[White "Vrolijk, Liam"]
[Black "Kvaloy, Aksel Bu"]
[Result "1-0"]
[ECO "E11"]
[WhiteElo "2501"]
[BlackElo "2174"]
[Annotator "ChessBase"]
[PlyCount "67"]
[EventDate "2020.02.19"]
[EventType "swiss"]
[EventCountry "NOR"]
[SourceTitle "playchess.com"]
[Source "ChessBase"]
[SourceQuality "1"]
[TimeControl "5400+30"]

1. Nf3 {[%emt 0:00:00]} d5 {[%emt 0:00:00]} 2. d4 {[%emt 0:00:00]} Nf6 {[%emt 0:00:00]} 3. c4 {[%emt 0:00:00]} e6 {[%emt 0:00:00]} 4. g3 {[%emt 0:00:09]} Bb4+ {[%emt 0:00:21]} 5. Bd2 {[%emt 0:00:08]} Be7 {[%emt 0:00:05]} 6. Bg2 {[%emt 0:00:16]} O-O {[%emt 0:00:10]} 7. O-O {[%emt 0:00:17]} Nbd7 {[%emt 0:00:24]} 8. Na3 {[%emt 0:02:18]} Ne4 {[%emt 0:04:59]} 9. Rc1 {[%emt 0:02:32]} Nxd2 {[%emt 0:02:41]} 10. Nxd2 {[%emt 0:05:07]} Nf6 {[%emt 0:03:22]} 11. Qb3 {[%emt 0:08:17]} c6 {[%emt 0:01:55]} 12. Rfd1 {[%emt 0:01:40]} Re8 {[%emt 0:12:55]} 13. e4 {[%emt 0:01:19]} Nxe4 {[%emt 0:02:00]} 14. Nxe4 {[%emt 0:00:10]} dxe4 {[%emt 0:00:17]} 15. Bxe4 {[%emt 0:00:11]} Qb6 {[%emt 0:05:59]} 16. Qc3 {[%emt 0:09:24]} Bd7 {[%emt 0:15:00]} 17. c5 {[%emt 0:01:20]} Qc7 {[%emt 0:00:30]} 18. Nc4 {[%emt 0:00:29]} Rad8 {[%emt 0:04:34]} 19. b4 {[%emt 0:04:42]} Bf6 {[%emt 0:21:54]} 20. Nd6 {[%emt 0:05:33]} Re7 {[%emt 0:03:13]} 21. Qc2 {[%emt 0:06:16]} g6 {[%emt 0:00:52]} 22. a4 {[%emt 0:00:12]} Bg7 {[%emt 0:02:14]} 23. b5 {[%emt 0:03:19]} f5 {[%emt 0:01:19]} 24. Bg2 {[%emt 0:00:48]} e5 {[%emt 0:01:14]} 25. d5 {[%emt 0:06:41]} cxd5 {[%emt 0:06:51]} 26. Bxd5+ {[%emt 0:00:27]} Be6 {[%emt 0:00:14]} 27. Bxe6+ {[%emt 0:02:19]} Rxe6 {[%emt 0:00:13]} 28. Qb3 {[%emt 0:00:28]} Qe7 {[%emt 0:01:31]} 29. c6 {[%emt 0:01:25]} bxc6 {[%emt 0:00:57]} 30. bxc6 {[%emt 0:00:08]} Kf8 {[%emt 0:01:40]} 31. c7 {[%emt 0:00:56]} Rexd6 {[%emt 0:00:19]} 32. Rxd6 {[%emt 0:00:19]} Qxd6 {[%emt 0:00:14]} 33. cxd8=Q+ {[%emt 0:00:15]} Qxd8 {[%emt 0:00:15]} 34. Qe6 {[%emt 0:00:15]} 1-0

[Event "Kragero Resort A 2020"]
[Site "Kragero"]
[Date "2020.02.19"]
[Round "1.8"]
[White "Notkevich, Benjamin Arvola"]
[Black "Altarbosh, Ward"]
[Result "1-0"]
[ECO "D17"]
[WhiteElo "2495"]
[BlackElo "2149"]
[Annotator "ChessBase"]
[PlyCount "95"]
[EventDate "2020.02.19"]
[EventType "swiss"]
[EventCountry "NOR"]
[SourceTitle "playchess.com"]
[Source "ChessBase"]
[SourceQuality "1"]
[TimeControl "5400+30"]

1. Nf3 {[%emt 0:00:00]} d5 {[%emt 0:00:00]} 2. d4 {[%emt 0:00:00]} Nf6 {[%emt 0:00:03]} 3. c4 {[%emt 0:00:00]} c6 {[%emt 0:00:03]} 4. Nc3 {[%emt 0:00:00]} dxc4 {[%emt 0:00:03]} 5. a4 {[%emt 0:00:05]} Bf5 {[%emt 0:00:02]} 6. Ne5 {[%emt 0:00:25]} Nbd7 {[%emt 0:00:04]} 7. Nxc4 {[%emt 0:00:11]} Nb6 {[%emt 0:00:21]} 8. Ne5 {[%emt 0:00:10]} a5 {[%emt 0:01:29]} 9. f3 {[%emt 0:00:10]} Nfd7 {[%emt 0:00:02]} 10. e4 {[%emt 0:00:09]} Nxe5 {[%emt 0:00:44]} 11. dxe5 {[%emt 0:01:15]} Qxd1+ {[%emt 0:00:12]} 12. Kxd1 {[%emt 0:03:56]} Be6 {[%emt 0:00:05]} 13. Kc2 {[%emt 0:00:12]} f6 {[%emt 0:01:03]} 14. Rb1 {[%emt 0:19:17]} fxe5 {[%emt 0:01:39]} 15. b4 {[%emt 0:00:14]} Nc4 {[%emt 0:00:01]} 16. Bxc4 {[%emt 0:01:00]} Bxc4 {[%emt 0:00:04]} 17. bxa5 {[%emt 0:00:12]} Ba6 {[%emt 0:00:41]} 18. Rd1 {[%emt 0:04:08]} Rc8 {[%emt 0:09:32]} 19. Bb2 {[%emt 0:09:02]} e6 {[%emt 0:01:08]} 20. Na2 {[%emt 0:05:40]} h5 {[%emt 0:18:03]} 21. Bxe5 {[%emt 0:00:53]} h4 {[%emt 0:03:36]} 22. Nb4 {[%emt 0:08:11]} Bxb4 {[%emt 0:19:44]} 23. Rxb4 {[%emt 0:00:49]} Rd8 {[%emt 0:00:56]} 24. Rxd8+ {[%emt 0:06:51]} Kxd8 {[%emt 0:00:01]} 25. Rd4+ {[%emt 0:00:13]} Ke7 {[%emt 0:00:44]} 26. Kd2 {[%emt 0:06:48]} Rg8 {[%emt 0:04:02]} 27. Ke3 {[%emt 0:03:40]} g5 {[%emt 0:00:47]} 28. h3 {[%emt 0:00:14]} Rc8 {[%emt 0:00:20]} 29. Bd6+ {[%emt 0:00:49]} Kf6 {[%emt 0:01:57]} 30. Bc5 {[%emt 0:00:45]} Rc7 {[%emt 0:00:01]} 31. Rd8 {[%emt 0:00:44]} Rf7 {[%emt 0:00:10]} 32. Bd4+ {[%emt 0:01:18]} Kg6 {[%emt 0:00:01]} 33. Rg8+ {[%emt 0:01:29]} Kh6 {[%emt 0:02:02]} 34. Kf2 {[%emt 0:02:39]} Rd7 {[%emt 0:00:11]} 35. Be3 {[%emt 0:00:10]} Rd1 {[%emt 0:00:10]} 36. Bxg5+ {[%emt 0:00:10]} Kh5 {[%emt 0:01:27]} 37. Bf4 {[%emt 0:01:23]} Ra1 {[%emt 0:01:00]} 38. Rh8+ {[%emt 0:12:26]} Kg6 {[%emt 0:00:01]} 39. Rxh4 {[%emt 0:00:12]} c5 {[%emt 0:00:58]} 40. Rh6+ {[%emt 0:00:16]} Kf7 {[%emt 0:03:28]} 41. Rh7+ {[%emt 0:00:08]} Kg8 {[%emt 0:02:35]} 42. Rg7+ {[%emt 0:01:04]} Kf8 {[%emt 0:02:06]} 43. Bd6+ {[%emt 0:00:08]} Kxg7 {[%emt 0:00:01]} 44. Be5+ {[%emt 0:00:08]} Kf7 {[%emt 0:00:11]} 45. Bxa1 {[%emt 0:00:05]} Bc4 {[%emt 0:00:32]} 46. h4 {[%emt 0:00:07]} Bb3 {[%emt 0:00:17]} 47. g4 {[%emt 0:00:17]} Bd1 {[%emt 0:00:12]} 48. h5 {[%emt 0:00:10]} 1-0

[Event "Kragero Resort A 2020"]
[Site "Kragero"]
[Date "2020.02.19"]
[Round "1.9"]
[White "Stanford, Sheila Barth"]
[Black "Lie, Espen"]
[Result "1-0"]
[ECO "A45"]
[WhiteElo "2145"]
[BlackElo "2490"]
[Annotator "ChessBase"]
[PlyCount "102"]
[EventDate "2020.02.19"]
[EventType "swiss"]
[EventCountry "NOR"]
[SourceTitle "playchess.com"]
[Source "ChessBase"]
[SourceQuality "1"]
[TimeControl "5400+30"]

1. d4 {[%emt 0:00:00]} Nf6 {[%emt 0:00:00]} 2. Bf4 {[%emt 0:00:00]} g6 {[%emt 0:00:11]} 3. Nc3 {[%emt 0:00:26]} Bg7 {[%emt 0:00:19]} 4. e4 {[%emt 0:00:42]} O-O {[%emt 0:00:27]} 5. Qd2 {[%emt 0:02:01]} d5 {[%emt 0:02:50]} 6. e5 {[%emt 0:00:46]} Ne4 {[%emt 0:00:07]} 7. Nxe4 {[%emt 0:01:34]} dxe4 {[%emt 0:00:02]} 8. O-O-O {[%emt 0:00:20]} c5 {[%emt 0:02:45]} 9. Ne2 {[%emt 0:07:36]} Nc6 {[%emt 0:05:38]} 10. Qe3 {[%emt 0:14:46]} Qa5 {[%emt 0:08:34]} 11. a3 {[%emt 0:00:56]} Rd8 {[%emt 0:08:09]} 12. Qc3 {[%emt 0:14:32]} Bg4 {[%emt 0:29:42]} 13. Qxa5 {[%emt 0:09:52]} Nxa5 {[%emt 0:00:02]} 14. dxc5 {[%emt 0:01:43]} Rxd1+ {[%emt 0:05:29]} 15. Kxd1 {[%emt 0:00:02]} g5 {[%emt 0:00:46]} 16. Bxg5 {[%emt 0:05:34]} Bxe5 {[%emt 0:00:42]} 17. Kc1 {[%emt 0:00:57]} f6 {[%emt 0:05:52]} 18. Bf4 {[%emt 0:08:55]} Bxe2 {[%emt 0:07:54]} 19. Bxe5 {[%emt 0:00:08]} Bxf1 {[%emt 0:00:46]} 20. Bc3 {[%emt 0:00:08]} Bxg2 {[%emt 0:00:46]} 21. Rg1 {[%emt 0:00:07]} Kf7 {[%emt 0:00:12]} 22. Rxg2 {[%emt 0:05:06]} Nc4 {[%emt 0:03:19]} 23. Rg4 {[%emt 0:02:07]} Rg8 {[%emt 0:00:07]} 24. Rxe4 {[%emt 0:01:04]} Rg1+ {[%emt 0:00:13]} 25. Re1 {[%emt 0:00:22]} Rg2 {[%emt 0:00:51]} 26. Re4 {[%emt 0:00:55]} Rg1+ {[%emt 0:00:40]} 27. Re1 {[%emt 0:00:14]} Rxe1+ {[%emt 0:01:31]} 28. Bxe1 {[%emt 0:00:03]} Ke6 {[%emt 0:00:00]} 29. b3 {[%emt 0:03:51]} Ne5 {[%emt 0:00:36]} 30. h3 {[%emt 0:01:31]} Kd5 {[%emt 0:00:31]} 31. Bd2 {[%emt 0:02:12]} a6 {[%emt 0:03:58]} 32. c4+ {[%emt 0:01:49]} Ke4 {[%emt 0:03:44]} 33. Kc2 {[%emt 0:01:01]} Nd7 {[%emt 0:01:25]} 34. b4 {[%emt 0:03:52]} f5 {[%emt 0:03:03]} 35. f4 {[%emt 0:02:11]} e5 {[%emt 0:01:59]} 36. fxe5 {[%emt 0:00:15]} Nxe5 {[%emt 0:00:01]} 37. Kc3 {[%emt 0:04:07]} f4 {[%emt 0:00:06]} 38. b5 {[%emt 0:03:06]} f3 {[%emt 0:01:58]} 39. Be1 {[%emt 0:00:33]} axb5 {[%emt 0:02:05]} 40. cxb5 {[%emt 0:00:07]} Ke3 {[%emt 0:01:14]} 41. Bg3 {[%emt 0:01:12]} Ke4 {[%emt 0:01:00]} 42. a4 {[%emt 0:02:03]} Kd5 {[%emt 0:00:04]} 43. Bf2 {[%emt 0:00:15]} Nc4 {[%emt 0:01:02]} 44. c6 {[%emt 0:00:55]} bxc6 {[%emt 0:00:09]} 45. bxc6 {[%emt 0:00:03]} Nd6 {[%emt 0:00:20]} 46. c7 {[%emt 0:00:22]} Kc6 {[%emt 0:00:26]} 47. Bg3 {[%emt 0:00:51]} Nc8 {[%emt 0:00:21]} 48. Kd3 {[%emt 0:00:44]} Kc5 {[%emt 0:00:49]} 49. Ke3 {[%emt 0:00:40]} Kb4 {[%emt 0:00:05]} 50. Kxf3 {[%emt 0:00:05]} Kxa4 {[%emt 0:00:05]} 51. Kf4 {[%emt 0:01:11]} Kb5 {[%emt 0:00:05]} 1-0

[Event "Kragero Resort A 2020"]
[Site "Kragero"]
[Date "2020.02.19"]
[Round "1.10"]
[White "Castellanos Rodriguez, Renier"]
[Black "Shehzad, Shazil"]
[Result "0-1"]
[ECO "B90"]
[WhiteElo "2481"]
[BlackElo "2144"]
[Annotator "ChessBase"]
[PlyCount "64"]
[EventDate "2020.02.19"]
[EventType "swiss"]
[EventCountry "NOR"]
[SourceTitle "playchess.com"]
[Source "ChessBase"]
[SourceQuality "1"]
[TimeControl "5400+30"]

1. e4 {[%emt 0:00:00]} c5 {[%emt 0:00:00]} 2. Nf3 {[%emt 0:00:00]} d6 {[%emt 0:00:00]} 3. d4 {[%emt 0:00:26]} cxd4 {[%emt 0:00:00]} 4. Nxd4 {[%emt 0:02:26]} Nf6 {[%emt 0:00:09]} 5. Nc3 {[%emt 0:00:02]} a6 {[%emt 0:00:30]} 6. Be3 {[%emt 0:01:33]} e5 {[%emt 0:00:29]} 7. Nf3 {[%emt 0:00:17]} Be7 {[%emt 0:02:31]} 8. h3 {[%emt 0:01:41]} Qc7 {[%emt 0:03:39]} 9. g4 {[%emt 0:02:24]} h6 {[%emt 0:01:58]} 10. g5 {[%emt 0:15:30]} hxg5 {[%emt 0:00:53]} 11. Nxg5 {[%emt 0:00:09]} b5 {[%emt 0:10:55]} 12. Nd5 {[%emt 0:12:31]} Nxd5 {[%emt 0:00:49]} 13. Qxd5 {[%emt 0:00:04]} Bxg5 {[%emt 0:00:13]} 14. Bxg5 {[%emt 0:00:07]} Bb7 {[%emt 0:00:08]} 15. Qd3 {[%emt 0:00:15]} Nd7 {[%emt 0:01:15]} 16. f3 {[%emt 0:03:20]} Nc5 {[%emt 0:02:03]} 17. Qd2 {[%emt 0:01:10]} Ne6 {[%emt 0:01:06]} 18. Be3 {[%emt 0:05:33]} d5 {[%emt 0:03:39]} 19. exd5 {[%emt 0:03:33]} Rd8 {[%emt 0:00:48]} 20. Qc3 {[%emt 0:11:10]} Qxc3+ {[%emt 0:01:50]} 21. bxc3 {[%emt 0:00:01]} Bxd5 {[%emt 0:00:45]} 22. Kf2 {[%emt 0:00:24]} Rc8 {[%emt 0:01:11]} 23. a4 {[%emt 0:01:04]} Rxc3 {[%emt 0:03:22]} 24. axb5 {[%emt 0:00:26]} Rxc2+ {[%emt 0:00:52]} 25. Kg3 {[%emt 0:01:28]} f5 {[%emt 0:05:41]} 26. Rc1 {[%emt 0:03:41]} f4+ {[%emt 0:02:34]} 27. Kg4 {[%emt 0:00:02]} Rxc1 {[%emt 0:02:39]} 28. Bxc1 {[%emt 0:00:02]} Nd4 {[%emt 0:00:36]} 29. Bg2 {[%emt 0:00:43]} Kf7 {[%emt 0:09:01]} 30. Bxf4 {[%emt 0:04:02]} exf4 {[%emt 0:07:36]} 31. bxa6 {[%emt 0:00:40]} g5 {[%emt 0:04:36]} 32. Kxg5 {[%emt 0:00:39]} Ne6+ {[%emt 0:00:43]} 0-1

[Event "Kragero Resort A 2020"]
[Site "Kragero"]
[Date "2020.02.19"]
[Round "1.11"]
[White "Kizatbay, Abyl"]
[Black "Hauge, Lars Oskar"]
[Result "1-0"]
[ECO "B30"]
[WhiteElo "2142"]
[BlackElo "2472"]
[Annotator "ChessBase"]
[PlyCount "79"]
[EventDate "2020.02.19"]
[EventType "swiss"]
[EventCountry "NOR"]
[SourceTitle "playchess.com"]
[Source "ChessBase"]
[SourceQuality "1"]
[TimeControl "5400+30"]

1. e4 {[%emt 0:00:00]} c5 {[%emt 0:00:00]} 2. Nf3 {[%emt 0:00:00]} Nc6 {[%emt 0:00:00]} 3. Bb5 {[%emt 0:00:00]} e6 {[%emt 0:00:00]} 4. O-O {[%emt 0:00:31]} Nge7 {[%emt 0:00:07]} 5. d4 {[%emt 0:03:25]} cxd4 {[%emt 0:03:47]} 6. Nxd4 {[%emt 0:00:07]} Nxd4 {[%emt 0:01:00]} 7. Qxd4 {[%emt 0:00:19]} a6 {[%emt 0:00:11]} 8. Be2 {[%emt 0:02:38]} Nc6 {[%emt 0:08:32]} 9. Qd3 {[%emt 0:06:03]} Qc7 {[%emt 0:04:38]} 10. c4 {[%emt 0:04:29]} b6 {[%emt 0:01:02]} 11. Nc3 {[%emt 0:03:44]} Bb7 {[%emt 0:01:07]} 12. b3 {[%emt 0:05:24]} Bd6 {[%emt 0:13:29]} 13. Kh1 {[%emt 0:08:20]} Ne5 {[%emt 0:00:43]} 14. Qd2 {[%emt 0:06:57]} h5 {[%emt 0:04:07]} 15. f4 {[%emt 0:06:35]} Ng4 {[%emt 0:02:03]} 16. Bf3 {[%emt 0:02:25]} O-O-O {[%emt 0:09:44]} 17. e5 {[%emt 0:05:45]} Bc5 {[%emt 0:02:27]} 18. Qe2 {[%emt 0:13:43]} d6 {[%emt 0:02:11]} 19. Bxb7+ {[%emt 0:04:28]} Kxb7 {[%emt 0:01:51]} 20. Ne4 {[%emt 0:05:54]} d5 {[%emt 0:07:01]} 21. cxd5 {[%emt 0:01:12]} Rxd5 {[%emt 0:01:13]} 22. Bb2 {[%emt 0:02:01]} Qe7 {[%emt 0:09:27]} 23. Rac1 {[%emt 0:01:44]} Rhd8 {[%emt 0:07:26]} 24. Nxc5+ {[%emt 0:04:03]} bxc5 {[%emt 0:05:10]} 25. Bc3 {[%emt 0:00:48]} Qc7 {[%emt 0:01:39]} 26. Qe1 {[%emt 0:01:56]} Qc6 {[%emt 0:00:32]} 27. Ba5 {[%emt 0:00:25]} R8d7 {[%emt 0:01:37]} 28. a4 {[%emt 0:01:23]} Rd3 {[%emt 0:00:33]} 29. b4 {[%emt 0:03:01]} Rd2 {[%emt 0:05:08]} 30. Rf3 {[%emt 0:00:59]} Qxa4 {[%emt 0:00:59]} 31. bxc5 {[%emt 0:00:59]} Rc2 {[%emt 0:04:19]} 32. Rb1+ {[%emt 0:02:51]} Ka8 {[%emt 0:01:35]} 33. h3 {[%emt 0:01:05]} Nh6 {[%emt 0:00:36]} 34. Rfb3 {[%emt 0:01:15]} Qc6 {[%emt 0:00:14]} 35. Qf1 {[%emt 0:01:43]} Nf5 {[%emt 0:00:20]} 36. Kh2 {[%emt 0:00:40]} Nh4 {[%emt 0:00:14]} 37. Rb6 {[%emt 0:00:26]} Rxg2+ {[%emt 0:00:34]} 38. Kh1 {[%emt 0:00:09]} Rd3 {[%emt 0:00:01]} 39. Rb8+ {[%emt 0:00:41]} Ka7 {[%emt 0:00:12]} 40. R1b7+ {[%emt 0:00:03]} 1-0